lending/lending_fUSD_20240731
["ID","MTS","AMOUNT","RATE_DAILY","PERIOD"]
[333722958,1722408329249,-3008.35,0.00044931,120]
[333722959,1722408329287,-500.0,0.00044931,120]
[333722960,1722408329327,-528.41,0.00044931,120]
[333722961,1722408329365,-605.31,0.00044931,120]
[333722962,1722408329403,-500.0,0.00044931,120]
[333722963,1722408329441,-561.58,0.00044931,120]
[333722964,1722408329479,-735.42,0.00044931,120]
[333722965,1722408329515,-755.15,0.00044931,120]
[333722966,1722408329552,-2210.28,0.00044931,120]
[333722967,1722408329589,-1758.5,0.00044931,120]
[333722968,1722408329626,-811.29,0.00044931,120]
[333722969,1722408329664,-500.0,0.00044931,120]
[333722970,1722408329707,-500.0,0.00044931,120]
[333722971,1722408329753,-500.0,0.00044931,120]
[333722972,1722408329791,-766.29,0.00044931,120]
[333722973,1722408329830,-500.0,0.00044931,120]
[333722974,1722408329868,-2182.13,0.00044931,120]
[333722975,1722408329905,-662.67,0.00044931,120]
[333722976,1722408329944,-500.0,0.00044931,120]
[333722977,1722408329983,-500.0,0.00044931,120]
[333722978,1722408330023,-500.0,0.00044931,120]
[333722979,1722408330062,-581.13,0.00044931,120]
[333722980,1722408330101,-500.0,0.00044931,120]
[333722981,1722408330145,-500.0,0.00044931,120]
[333722982,1722408330185,-500.0,0.00044931,120]
[333722983,1722408330224,-500.0,0.00044931,120]
[333722984,1722408330262,-500.0,0.00044931,120]
[333722985,1722408330300,-500.0,0.00044931,120]
[333722986,1722408330340,-628.83,0.00044931,120]
[333722987,1722408330379,-572.92,0.00044931,120]
[333722988,1722408330419,-500.0,0.00044931,120]
[333722989,1722408330457,-3052.94,0.00044931,120]
[333722990,1722408330495,-1029.4,0.00044931,120]
[333722991,1722408330533,-500.0,0.00044931,120]
[333722992,1722408330571,-2476.98,0.00044931,120]
[333722993,1722408330610,-1397.97,0.00044931,120]
[333722994,1722408330651,-3062.94,0.00044931,120]
[333722995,1722408330689,-500.0,0.00044931,120]
[333722996,1722408330729,-4721.93,0.00044931,120]
[333722997,1722408330768,-500.0,0.00044931,120]
[333722998,1722408330806,-1434.58,0.00044931,120]
[333722999,1722408330844,-500.0,0.00044931,120]
[333723000,1722408330882,-507.05,0.00044931,120]
[333723001,1722408330925,-1245.56,0.00044931,120]
[333723002,1722408330965,-3671.23,0.00044931,120]
[333723003,1722408331004,-500.0,0.00044931,120]
[333723004,1722408331043,-908.54,0.00044931,120]
[333723005,1722408331083,-500.0,0.00044931,120]
[333723006,1722408331122,-500.0,0.00044931,120]
[333723007,1722408331166,-522.1,0.00044931,120]
[333723008,1722408331205,-1689.03,0.00044931,120]
[333723009,1722408331246,-553.23,0.00044931,120]
[333723010,1722408331285,-500.0,0.00044931,120]
[333723011,1722408331324,-500.0,0.00044931,120]
[333723012,1722408331362,-500.0,0.00044931,120]
[333723013,1722408331403,-1090.76,0.00044931,120]
[333723014,1722408331648,-505.64,0.00044931,120]
[333723015,1722408331687,-500.0,0.00044931,120]
[333723016,1722408331724,-1595.68,0.00044931,120]
[333723017,1722408331763,-500.0,0.00044931,120]
[333723018,1722408331803,-500.0,0.00044931,120]
[333723019,1722408331842,-886.85,0.00044931,120]
[333723020,1722408331879,-215.12051805,0.00044931,120]
[333723021,1722408331917,-1436.92,0.00044931,120]
[333723022,1722408331954,-500.0,0.00044931,120]
[333723023,1722408331990,-980.83,0.00044931,120]
[333723024,1722408332028,-500.0,0.00044931,120]
[333723025,1722408332065,-961.32,0.00044931,120]
[333723026,1722408332102,-500.0,0.00044931,120]
[333723027,1722408332139,-500.0,0.00044931,120]
[333723028,1722408332180,-500.0,0.00044931,120]
[333723029,1722408332221,-500.0,0.00044931,120]
[333723030,1722408332259,-500.0,0.00044931,120]
[333723031,1722408332297,-619.58,0.00044931,120]
[333723032,1722408332335,-500.0,0.00044931,120]
[333723033,1722408332374,-183.08884942,0.00044931,120]
[333723034,1722408332412,-1324.4,0.00044931,120]
[333723035,1722408332450,-1734.37,0.00044931,120]
[333723036,1722408332489,-916.88,0.00044931,120]
[333723037,1722408332527,-1450.39,0.00044931,120]
[333723038,1722408332565,-500.0,0.00044931,120]
[333723039,1722408332602,-500.0,0.00044931,120]
[333723040,1722408332640,-978.51,0.00044931,120]
[333723041,1722408332678,-500.0,0.00044931,120]
[333723042,1722408332714,-500.0,0.00044931,120]
[333723043,1722408332749,-500.0,0.00044931,120]
[333723044,1722408332787,-637.16,0.00044931,120]
[333723045,1722408332829,-500.0,0.00044931,120]
[333723046,1722408332866,-3055.94,0.00044931,120]
[333723047,1722408332906,-500.0,0.00044931,120]
[333723048,1722408332941,-500.0,0.00044931,120]
[333723049,1722408332980,-3428.21,0.00044931,120]
[333723050,1722408333017,-500.0,0.00044931,120]
[333723051,1722408333056,-1042.76,0.00044931,120]
[333723052,1722408333095,-500.0,0.00044931,120]
[333723053,1722408333134,-1046.47,0.00044931,120]
[333723054,1722408333176,-1739.19,0.00044931,120]
[333723055,1722408333217,-162.14712805,0.00044931,120]
[333723056,1722408333258,-500.0,0.00044931,120]
[333723057,1722408333298,-500.0,0.00044931,120]
[333723058,1722408333338,-3676.51,0.00044931,120]
[333723059,1722408333378,-500.0,0.00044931,120]
[333723060,1722408333419,-500.0,0.00044931,120]
[333723061,1722408333459,-500.0,0.00044931,120]
[333723062,1722408333499,-708.85,0.00044931,120]
[333723063,1722408333540,-641.96,0.00044931,120]
[333723064,1722408333578,-4147.58,0.00044931,120]
[333723065,1722408333618,-500.0,0.00044931,120]
[333723066,1722408333657,-500.0,0.00044931,120]
[333723067,1722408333698,-500.0,0.00044931,120]
[333723068,1722408333738,-615.60262495,0.00044931,120]
[333723069,1722408333778,-500.0,0.00044931,120]
[333723070,1722408333819,-1237.2,0.00044931,120]
[333723071,1722408333859,-500.0,0.00044931,120]
[333723072,1722408333902,-500.0,0.00044931,120]
[333723073,1722408333946,-500.0,0.00044931,120]
[333723074,1722408333987,-1091.36,0.00044931,120]
[333723075,1722408334030,-2718.2,0.00044931,120]
[333723076,1722408334074,-10565.72,0.00044931,120]
[333723077,1722408334115,-1716.34,0.00044931,120]
[333723078,1722408334163,-500.0,0.00044931,120]
[333723079,1722408334210,-500.0,0.00044931,120]
[333723080,1722408334260,-500.0,0.00044931,120]
[333723081,1722408334301,-500.0,0.00044931,120]
[333723082,1722408334343,-500.0,0.00044931,120]
[333723083,1722408334385,-628.08,0.00044931,120]
[333723084,1722408334427,-500.0,0.00044931,120]
[333723085,1722408334467,-636.34,0.00044931,120]
[333723086,1722408334507,-500.0,0.00044931,120]
[333723087,1722408334545,-1000.0,0.00044931,120]
[333723088,1722408334583,-500.0,0.00044931,120]
[333723089,1722408334620,-500.0,0.00044931,120]
[333723090,1722408334658,-916.06,0.00044931,120]
[333723091,1722408334697,-500.68,0.00044931,120]
[333723092,1722408334737,-4839.01,0.00044931,120]
[333723093,1722408334775,-814.5,0.00044931,120]
[333723094,1722408334814,-1127.97,0.00044931,120]
[333723095,1722408334852,-500.0,0.00044931,120]
[333723096,1722408334892,-1101.7,0.00044931,120]
[333723097,1722408334932,-500.0,0.00044931,120]
[333723098,1722408334971,-3171.27,0.00044931,120]
[333723099,1722408335009,-1085.77,0.00044931,120]
[333723100,1722408335048,-500.0,0.00044931,120]
[333723101,1722408335086,-500.0,0.00044931,120]
[333723102,1722408335127,-1269.58,0.00044931,120]
[333723103,1722408335164,-527.72,0.00044931,120]
[333723104,1722408335207,-735.12,0.00044931,120]
[333723105,1722408335250,-830.45,0.00044931,120]
[333723106,1722408335293,-1213.79,0.00044931,120]
[333723107,1722408335333,-2199.24,0.00044931,120]
[333723108,1722408335371,-500.0,0.00044931,120]
[333723109,1722408335409,-742.16,0.00044931,120]
[333723110,1722408335447,-500.0,0.00044931,120]
[333723111,1722408335485,-558.71,0.00044931,120]
[333723112,1722408335522,-1171.99,0.00044931,120]
[333723113,1722408335559,-652.55,0.00044931,120]
[333723114,1722408335599,-1614.98,0.00044931,120]
[333723115,1722408335638,-922.39,0.00044931,120]
[333723116,1722408335676,-775.47,0.00044931,120]
[333723117,1722408335920,-1727.29,0.00044931,120]
[333723118,1722408335960,-500.0,0.00044931,120]
[333723119,1722408335997,-766.34,0.00044931,120]
[333723120,1722408336036,-500.0,0.00044931,120]
[333723121,1722408336075,-667.38,0.00044931,120]
[333723122,1722408336111,-500.0,0.00044931,120]
[333723123,1722408336153,-1600.07,0.00044931,120]
[333723124,1722408336192,-500.0,0.00044931,120]
[333723125,1722408336236,-3645.86,0.00044931,120]
[333723126,1722408336274,-1706.51,0.00044931,120]
[333723127,1722408336312,-500.0,0.00044931,120]
[333723128,1722408336351,-3634.42,0.00044931,120]
[333723129,1722408336390,-500.0,0.00044931,120]
[333723130,1722408336428,-650.03,0.00044931,120]
[333723131,1722408336464,-500.0,0.00044931,120]
[333723132,1722408336502,-891.71,0.00044931,120]
[333723133,1722408336539,-731.06,0.00044931,120]
[333723134,1722408336575,-500.0,0.00044931,120]
[333723135,1722408336612,-1010.16,0.00044931,120]
[333723136,1722408336650,-500.0,0.00044931,120]
[333723137,1722408336688,-548.12,0.00044931,120]
[333723138,1722408336726,-1120.16,0.00044931,120]
[333723139,1722408336765,-966.04,0.00044931,120]
[333723140,1722408336801,-500.0,0.00044931,120]
[333723141,1722408336839,-500.0,0.00044931,120]
[333723142,1722408336877,-500.0,0.00044931,120]
[333723143,1722408336914,-552.83,0.00044931,120]
[333723144,1722408336951,-500.0,0.00044931,120]
[333723145,1722408336988,-504.73,0.00044931,120]
[333723146,1722408337026,-961.72,0.00044931,120]
[333723147,1722408337063,-500.0,0.00044931,120]
[333723148,1722408337102,-500.0,0.00044931,120]
[333723149,1722408337143,-3018.05,0.00044931,120]
[333723150,1722408337186,-562.83,0.00044931,120]
[333723151,1722408337227,-500.0,0.00044931,120]
[333723152,1722408337267,-500.0,0.00044931,120]
[333723153,1722408337308,-514.17,0.00044931,120]
[333723154,1722408337349,-2095.91,0.00044931,120]
[333723155,1722408337389,-1504.39,0.00044931,120]
[333723156,1722408337429,-656.68,0.00044931,120]
[333723157,1722408337469,-1559.63,0.00044931,120]
[333723158,1722408337506,-2645.88,0.00044931,120]
[333723159,1722408337543,-500.0,0.00044931,120]
[333723160,1722408337580,-837.38,0.00044931,120]
[333723161,1722408337617,-500.0,0.00044931,120]
[333723162,1722408337655,-1378.48,0.00044931,120]
[333723163,1722408337695,-534.97,0.00044931,120]
[333723164,1722408337732,-2724.22,0.00044931,120]
[333723165,1722408337768,-500.0,0.00044931,120]
[333723166,1722408337803,-500.0,0.00044931,120]
[333723167,1722408337839,-2592.84,0.00044931,120]
[333723168,1722408337876,-3772.53,0.00044931,120]
[333723169,1722408337911,-500.0,0.00044931,120]
[333723170,1722408337948,-1325.58,0.00044931,120]
[333723171,1722408337984,-2771.65,0.00044931,120]
[333723172,1722408338020,-643.86,0.00044931,120]
[333723173,1722408338058,-500.0,0.00044931,120]
[333723174,1722408338096,-1917.75,0.00044931,120]
[333723175,1722408338135,-1216.71,0.00044931,120]
[333723176,1722408338174,-500.0,0.00044931,120]
[333723177,1722408338212,-1849.58,0.00044931,120]
[333723178,1722408338253,-662.07,0.00044931,120]
[333723179,1722408338292,-1824.68,0.00044931,120]
[333723180,1722408338330,-500.0,0.00044931,120]
[333723181,1722408338368,-1916.29,0.00044931,120]
[333723182,1722408338406,-500.0,0.00044931,120]
[333723183,1722408338444,-1180.34,0.00044931,120]
[333723184,1722408338482,-500.0,0.00044931,120]
[333723185,1722408338522,-500.0,0.00044931,120]
[333723186,1722408338560,-500.0,0.00044931,120]
[333723187,1722408338597,-2919.98,0.00044931,120]
[333723188,1722408338636,-500.0,0.00044931,120]
[333723189,1722408338676,-500.0,0.00044931,120]
[333723190,1722408338713,-500.0,0.00044931,120]
[333723191,1722408338749,-305.78427884,0.00044931,120]
[333723192,1722408338787,-1585.71,0.00044931,120]
[333723193,1722408338824,-500.0,0.00044931,120]
[333723194,1722408338861,-500.0,0.00044931,120]
[333723195,1722408338899,-1083.89,0.00044931,120]
[333723196,1722408338936,-500.0,0.00044931,120]
[333723197,1722408338971,-500.0,0.00044931,120]
[333723198,1722408339010,-1134.13,0.00044931,120]
[333723199,1722408339045,-500.0,0.00044931,120]
[333723200,1722408339083,-811.79,0.00044931,120]
[333723201,1722408339120,-1395.16,0.00044931,120]
[333723202,1722408339159,-506.05345029,0.00044931,120]
[333723203,1722408339198,-500.0,0.00044931,120]
[333723204,1722408339238,-561.99,0.00044931,120]
[333723205,1722408339274,-4315.29,0.00044931,120]
[333723206,1722408339312,-603.55433068,0.00044931,120]
[333723207,1722408339350,-640.96,0.00044931,120]
[333723208,1722408339390,-1109.51,0.00044931,120]
[333723209,1722408339429,-500.0,0.00044931,120]
[333723210,1722408339466,-556.47,0.00044931,120]
[333723211,1722408339504,-556.0,0.00044931,120]
[333723212,1722408339541,-500.0,0.00044931,120]
[333723213,1722408339578,-982.35,0.00044931,120]
[333723214,1722408339614,-500.0,0.00044931,120]
[333723215,1722408339652,-537.84,0.00044931,120]
[333723216,1722408339689,-500.0,0.00044931,120]
[333723217,1722408339725,-500.0,0.00044931,120]
[333723218,1722408339762,-500.0,0.00044931,120]
[333723219,1722408339799,-663.39,0.00044931,120]
[333723220,1722408339836,-500.0,0.00044931,120]
[333723221,1722408340087,-500.0,0.00044931,120]
[333723222,1722408340130,-812.81,0.00044931,120]
[333723223,1722408340171,-550.81,0.00044931,120]
[333723224,1722408340212,-1485.45,0.00044931,120]
[333723225,1722408340251,-500.0,0.00044931,120]
[333723226,1722408340294,-500.0,0.00044931,120]
[333723227,1722408340334,-1212.6,0.00044931,120]
[333723228,1722408340373,-500.0,0.00044931,120]
[333723229,1722408340412,-1677.21,0.00044931,120]
[333723230,1722408340453,-1252.77,0.00044931,120]
[333723231,1722408340493,-2203.32,0.00044931,120]
[333723232,1722408340533,-1241.82,0.00044931,120]
[333723233,1722408340571,-2111.06,0.00044931,120]
[333723234,1722408340608,-404.0767363,0.00044931,120]
[333723235,1722408340646,-500.0,0.00044931,120]
[333723236,1722408340685,-500.0,0.00044931,120]
[333723237,1722408340723,-500.0,0.00044931,120]
[333723238,1722408340762,-929.39,0.00044931,120]
[333723239,1722408340799,-500.0,0.00044931,120]
[333723240,1722408340837,-500.0,0.00044931,120]
[333723241,1722408340873,-1400.84,0.00044931,120]
[333723242,1722408340910,-2810.79,0.00044931,120]
[333723243,1722408340947,-745.39,0.00044931,120]
[333723244,1722408340985,-174.14492101,0.00044931,120]
[333723245,1722408341022,-729.12,0.00044931,120]
[333723246,1722408341063,-500.0,0.00044931,120]
[333723247,1722408341101,-2747.42,0.00044931,120]
[333723248,1722408341139,-1288.86,0.00044931,120]
[333723249,1722408341181,-500.0,0.00044931,120]
[333723250,1722408341220,-2000.0,0.00044931,30]
[333723251,1722408341259,-500.0,0.00044931,120]
[333723252,1722408341297,-500.0,0.00044931,120]
[333723253,1722408341334,-500.0,0.00044931,120]
[333723254,1722408341372,-500.0,0.00044931,120]
[333723255,1722408341411,-500.0,0.00044931,120]
[333723256,1722408341448,-1035.44,0.00044931,120]
[333723257,1722408341489,-3293.78,0.00044931,120]
[333723258,1722408341525,-500.0,0.00044931,120]
[333723259,1722408341563,-5027.11,0.00044931,120]
[333723260,1722408341599,-500.0,0.00044931,120]
[333723261,1722408341637,-500.0,0.00044931,120]
[333723262,1722408341677,-291.67456696,0.00044931,120]
[333723263,1722408341714,-500.0,0.00044931,120]
[333723264,1722408341752,-1169.74,0.00044931,120]
[333723265,1722408341789,-708.85,0.00044931,120]
[333723266,1722408341827,-500.0,0.00044931,120]
[333723267,1722408341868,-1765.8,0.00044931,120]
[333723268,1722408341907,-500.0,0.00044931,120]
[333723269,1722408341946,-500.0,0.00044931,120]
[333723270,1722408341982,-500.0,0.00044931,120]
[333723271,1722408342019,-525.22673357,0.00044931,120]
[333723272,1722408342059,-744.28,0.00044931,120]
[333723273,1722408342095,-500.0,0.00044931,120]
[333723274,1722408342133,-565.10246081,0.00044931,120]
[333723275,1722408342170,-508.00016333,0.00044931,120]
[333723276,1722408342208,-500.0,0.00044931,120]
[333723277,1722408342246,-522.34,0.00044931,120]
[333723278,1722408342288,-500.0,0.00044931,120]
[333723279,1722408342329,-3566.5,0.00044931,120]
[333723280,1722408342369,-500.0,0.00044931,120]
[333723281,1722408342410,-500.0,0.00044931,120]
[333723282,1722408342451,-9736.19,0.00044931,120]
[333723283,1722408342492,-500.0,0.00044931,120]
[333723284,1722408342530,-2105.25,0.00044931,120]
[333723285,1722408342568,-500.0,0.00044931,120]
[333723286,1722408342607,-1217.53,0.00044931,120]
[333723287,1722408342645,-500.0,0.00044931,120]
[333723288,1722408342684,-501.99372793,0.00044931,120]
[333723289,1722408342723,-500.0,0.00044931,120]
[333723290,1722408342765,-9161.82,0.00044931,120]
[333723291,1722408342801,-500.0,0.00044931,120]
[333723292,1722408342839,-500.0,0.00044931,120]
[333723293,1722408342877,-500.0,0.00044931,120]
[333723294,1722408342914,-500.0,0.00044931,120]
[333723295,1722408342952,-694.12,0.00044931,120]
[333723296,1722408342992,-500.0,0.00044931,120]
[333723297,1722408343030,-500.0,0.00044931,120]
[333723298,1722408343069,-2360.71,0.00044931,120]
[333723299,1722408343107,-820.81,0.00044931,120]
[333723300,1722408343146,-535.54,0.00044931,120]
[333723301,1722408343186,-203.63872089,0.00044931,120]
[333723302,1722408343226,-549.99,0.00044931,120]
[333723303,1722408343265,-500.0,0.00044931,120]
[333723304,1722408343304,-500.0,0.00044931,120]
[333723305,1722408343345,-1314.32,0.00044931,120]
[333723306,1722408343387,-1173.68,0.00044931,120]
[333723307,1722408343426,-924.82,0.00044931,120]
[333723308,1722408343466,-640.72,0.00044931,120]
[333723309,1722408343508,-792.98007521,0.00045,30]
[333723310,1722408343545,-916.23157775,0.00045,30]
[333723311,1722408343584,-499.45350427,0.00045,30]
[333723312,1722408343623,-2452.64615381,0.00045,30]
[333723313,1722408343661,-2508.43007681,0.00045,30]
[333723314,1722408343700,-531300.03458369,0.00045,120]
[333723315,1722408343738,-1000000.0,0.00045,120]
[333723316,1722408343777,-269531.6069299,0.00045,120]
[333723317,1722408488067,800.0,0.00026986,120]
[333723333,1722408631767,-150.86,7.875e-05,2]
[333723334,1722408631776,-1077.25482033,9.809e-05,2]
[333723335,1722408631787,-4852.96517967,9.809e-05,2]
[333723336,1722408631796,-654.49,9.844e-05,2]
[333723337,1722408631805,-267.64,9.846e-05,2]
[333723338,1722408631814,-640.0,9.847e-05,2]
[333723339,1722408631823,-251.00482033,9.858e-05,2]
[333723340,1722408632068,-108.99517967,9.858e-05,2]
[333723341,1722408632077,-300.0,9.924e-05,2]
[333723342,1722408632086,-300.0,9.924e-05,2]
[333723343,1722408632095,-2253.58176241,9.925e-05,2]
[333723346,1722408632106,-917.57823759,9.925e-05,2]
[333723347,1722408632115,-122.53869568,0.0001,2]
[333723366,1722408637841,-1010.92811315,0.0001,2]
[333723484,1722408639900,-116.53319117,0.0001,2]
[333723487,1722408639910,-499.99,0.0001,2]
[333723491,1722408639919,-605.12475582,0.00010062,2]
[333723495,1722408639931,-1914.17524418,0.00010062,2]
[333723500,1722408639940,-606.64,0.00010062,2]
[333723503,1722408639950,-178.58,0.00010062,2]
[333723506,1722408639959,-1801.86,0.00010062,2]
[333723509,1722408639968,-3055.97,0.00010062,2]
[333723512,1722408639978,-2928.79,0.0001023,2]
[333723514,1722408639988,-974.6,0.0001023,2]
[333723516,1722408639997,-799.57,0.0001023,2]
[333723518,1722408640007,-15236.693295,0.00010529,2]
[333723520,1722408640017,-492.081884,0.00010529,2]
[333723522,1722408640027,-15176.235895,0.00010529,2]
[333723524,1722408640036,-326.098854,0.00010529,2]
[333723526,1722408640045,-15236.693295,0.0001066,2]
[333723527,1722408640055,-492.081884,0.0001066,2]
[333723529,1722408640065,-7674.52205427,0.0001066,2]
[333723532,1722408640078,-7501.71384073,0.0001066,2]
[333723534,1722408640088,-326.098854,0.0001066,2]
[333723536,1722408640098,-9066.2509,0.00010692,2]
[333723538,1722408640107,-150.96529,0.00010692,2]
[333723540,1722408640117,-20215.4204,0.00010699,2]
[333723541,1722408640126,-1000.0,0.00010699,2]
[333723543,1722408640136,-320.7457,0.00010699,2]
[333723545,1722408640145,-943.4308,0.000107,2]
[333723547,1722408640154,-7524.3194,0.000107,2]
[333723549,1722408640164,-26664.7312,0.000107,2]
[333723551,1722408640174,-255.5494,0.000107,2]
[333723553,1722408640183,-704.39,0.000107,2]
[333723555,1722408640192,-157.30196562,0.000107,2]
[333723557,1722408640202,-15236.693295,0.00010792,2]
[333723559,1722408640219,-492.081884,0.00010792,2]
[333723561,1722408640229,-15176.235895,0.00010792,2]
[333723563,1722408640238,-326.098854,0.00010792,2]
[333723565,1722408640247,-67638.59922962,0.00010799,2]
[333723567,1722408640260,-55508.67631084,0.00010799,2]
[333723569,1722408640271,-79882.90286144,0.000108,2]
[333723572,1722408640297,-1274583.14320347,0.000108,2]
[333723574,1722408640307,-157.30196562,0.000108,2]
[333723576,1722408640317,-210.925,0.00010842,2]
[333723578,1722408640326,-38392.0,0.00010842,2]
[333723580,1722408640335,-784.728,0.00010842,2]
[333723582,1722408640345,-1073.0,0.00010842,2]
[333723584,1722408640354,-1270.0895,0.00010899,2]
[333723586,1722408640363,-827.77564252,0.00010899,2]
[333723588,1722408640373,-827.77564243,0.00010899,2]
[333723590,1722408640383,-827.77564243,0.00010899,2]
[333723592,1722408640394,-827.77564243,0.00010899,2]
[333723594,1722408640404,-827.77564243,0.00010899,2]
[333723596,1722408640414,-827.77564243,0.00010899,2]
[333723598,1722408640423,-827.77564243,0.00010899,2]
[333723600,1722408640432,-827.77564243,0.00010899,2]
[333723602,1722408640442,-827.77564243,0.00010899,2]
[333723604,1722408640452,-157.30196562,0.000109,2]
[333723606,1722408640461,-159.31017033,0.000109,2]
[333723607,1722408640471,-159.31017033,0.000109,2]
[333723609,1722408640481,-159.31017033,0.000109,2]
[333723611,1722408640490,-159.31017033,0.000109,2]
[333723613,1722408640501,-159.31017033,0.000109,2]
[333723615,1722408640510,-159.31017033,0.000109,2]
[333723617,1722408640520,-155.35,0.000109,2]
[333723619,1722408640530,-155.35,0.000109,2]
[333723621,1722408640540,-827.77564243,0.000109,2]
[333723623,1722408640549,-241.0,0.00010916,2]
[333723625,1722408640559,-420.0,0.00010916,2]
[333723627,1722408640569,-15236.693295,0.00010923,2]
[333723629,1722408640578,-492.081884,0.00010923,2]
[333723630,1722408640588,-15176.235895,0.00010923,2]
[333723632,1722408640598,-326.098854,0.00010923,2]
[333723634,1722408640608,-500.0,0.0001095,2]
[333723636,1722408640618,-200.0,0.00010959,2]
[333723638,1722408640628,-1000.0,0.00010959,2]
[333723640,1722408640639,-1058.0,0.00010959,2]
[333723643,1722408640649,-155.35,0.00010979,2]
[333723644,1722408640659,-638.0,0.00010986,2]
[333723646,1722408640671,-102684.29826475,0.00010989,2]
[333723648,1722408640681,-155.35,0.0001099,2]
[333723650,1722408640690,-155.35,0.0001099,2]
[333723652,1722408640701,-155.35,0.0001099,2]
[333723655,1722408640711,-155.35,0.0001099,2]
[333723658,1722408640720,-155.35,0.0001099,2]
[333723660,1722408640730,-155.35,0.0001099,2]
[333723663,1722408640740,-155.35,0.0001099,2]
[333723665,1722408640750,-155.35,0.0001099,2]
[333723667,1722408640760,-155.35,0.0001099,2]
[333723669,1722408640769,-155.35,0.0001099,2]
[333723671,1722408640779,-5241.01948327,0.00010997,2]
[333723673,1722408640788,-2274.79010482,0.00010998,2]
[333723675,1722408640798,-500.0,0.00010999,2]
[333723677,1722408640807,-458.68706488,0.00010999,2]
[333723679,1722408640816,-150.0,0.00010999,2]
[333723681,1722408640826,-69104.85666032,0.00011,2]
[333723682,1722408640836,-4945635.43535727,0.00011,2]
[333723730,1722408641412,-280576.61977177,0.00011,2]
[333723732,1722408641424,-214328.68483012,0.00011,2]
[333723734,1722408641436,-496.07624443,0.00011,2]
[333723740,1722408641485,-924.899999,0.00011,2]
[333723742,1722408641497,-1642.8995,0.00011,2]
[333723746,1722408641527,-1131.59228596,0.00011,2]
[333723751,1722408641567,-457.93499999,0.00011,2]
[333723754,1722408641579,-260.90132782,0.00011,2]
[333723810,1722408643221,-1089.96367698,0.00011,2]
[333723811,1722408643233,-3224.73762716,0.00011,2]
[333723812,1722408643245,-744.5,0.00011,2]
[333723813,1722408643301,-263.95605343,0.00011,2]
[333723814,1722408643313,-300.0,0.00011,2]
[333723815,1722408643324,-302.0,0.00011,2]
[333723816,1722408643336,-13289.23339859,0.00011,2]
[333723817,1722408643347,-13363.87819001,0.00011,2]
[333723818,1722408643524,-572.21,0.00011,2]
[333723819,1722408643539,-6029.49838837,0.00011,2]
[333723820,1722408643624,-6584.2221912,0.00011,2]
[333723821,1722408643636,-293.56,0.00011,2]
[333723823,1722408645861,-28944.85528841,0.00011,2]
[333723824,1722408645872,-1400.13240077,0.00011,2]
[333723825,1722408645884,-2192.36880359,0.00011,2]
[333723826,1722408645896,-1221.72,0.00011,2]
[333723827,1722408645907,-456.80005735,0.00011,2]
[333723828,1722408645919,-3776.2899924,0.00011,2]
[333723829,1722408645930,-690.9032222,0.00011,2]
[333723830,1722408645941,-828.26264871,0.00011,2]
[333723831,1722408645952,-1696.99999999,0.00011,2]
[333723832,1722408645998,-164931.52618956,0.00011,2]
[333723833,1722408646009,-3620.68944261,0.00011,2]
[333723834,1722408646020,-3963.32370779,0.00011,2]